[Event "Titled Tuesday Blitz November 08 Early 2022"]
[White "Osmonbekov, Talaibek"]
[Black "Goncalves, Davi Sulzbacher"]
[WhiteFideId "2017253"]
[BlackFideId "2154510"]
[WhiteElo "2135"]
[BlackElo "2182"]
[Result "0-1"]
[Round "09"]
[TimeControl "180+1"]
[Date "2022.11.09"]
[WhiteClock "0:00:07"]
[BlackClock "0:00:15"]

1. d4 {[%clk 0:03:00]}  e6 {[%clk 0:02:56]} 2. e4 {[%clk 0:03:00]}  c5 {[%clk 0:02:55]} 3. d5 {[%clk 0:02:58]}  exd5 {[%clk 0:02:56]} 4. exd5 {[%clk 0:02:58]}  g6 {[%clk 0:02:57]} 5. d6 {[%clk 0:02:51]}  Bg7 {[%clk 0:02:56]} 6. Bc4 {[%clk 0:02:41]}  Nf6 {[%clk 0:02:52]} 7. Qe2+ {[%clk 0:02:39]}  Kf8 {[%clk 0:02:52]} 8. Nf3 {[%clk 0:02:36]}  Qe8 {[%clk 0:02:48]} 9. Be3 {[%clk 0:02:30]}  b6 {[%clk 0:02:37]} 10. O-O {[%clk 0:02:26]}  Bb7 {[%clk 0:02:27]} 11. Nc3 {[%clk 0:02:22]}  Nc6 {[%clk 0:02:24]} 12. Rfe1 {[%clk 0:02:01]}  Ng4 {[%clk 0:02:10]} 13. Qd2 {[%clk 0:01:53]}  Nce5 {[%clk 0:02:02]} 14. Bd5 {[%clk 0:01:41]}  Nxf3+ {[%clk 0:01:52]} 15. gxf3 {[%clk 0:01:40]}  Bxd5 {[%clk 0:01:47]} 16. Nxd5 {[%clk 0:01:39]}  Ne5 {[%clk 0:01:27]} 17. Qd1 {[%clk 0:01:28]}  Qe6 {[%clk 0:01:22]} 18. Nc7 {[%clk 0:01:28]}  Qh3 {[%clk 0:01:22]} 19. Bf4 {[%clk 0:01:17]}  Nxf3+ {[%clk 0:01:17]} 20. Kh1 {[%clk 0:01:17]}  Nxe1 {[%clk 0:01:11]} 21. Qxe1 {[%clk 0:01:13]}  Qf3+ {[%clk 0:01:11]} 22. Kg1 {[%clk 0:01:12]}  Qxf4 {[%clk 0:01:10]} 23. Qe7+ {[%clk 0:01:04]}  Kg8 {[%clk 0:01:08]} 24. Nxa8 {[%clk 0:01:01]}  Be5 {[%clk 0:01:03]} 25. Re1 {[%clk 0:00:52]}  Bxd6 {[%clk 0:00:50]} 26. Qxd7 {[%clk 0:00:49]}  Kg7 {[%clk 0:00:36]} 27. Rd1 {[%clk 0:00:36]}  Qxh2+ {[%clk 0:00:31]} 28. Kf1 {[%clk 0:00:36]}  Be5 {[%clk 0:00:25]} 29. Qxa7 {[%clk 0:00:32]}  Qh1+ {[%clk 0:00:24]} 30. Ke2 {[%clk 0:00:31]}  Qxa8 {[%clk 0:00:22]} 31. Qxb6 {[%clk 0:00:22]}  Re8 {[%clk 0:00:20]} 32. Kd2 {[%clk 0:00:15]}  Bf4+ {[%clk 0:00:19]} 33. Kc3 {[%clk 0:00:15]}  Qf3+ {[%clk 0:00:17]} 34. Rd3 {[%clk 0:00:15]}  Be5+ {[%clk 0:00:16]} 35. Kb3 {[%clk 0:00:10]}  Qf4 {[%clk 0:00:15]} 36. Qxc5 {[%clk 0:00:07]}  Rb8+ {[%clk 0:00:15]} 0-1


[Site "https://www.chess.com"]

[Event "Titled Tuesday Blitz November 08 Early 2022"]
[White "Ovchinnikov, Vsevolod"]
[Black "Melikhov, Evgeny V."]
[WhiteFideId "24176842"]
[BlackFideId "4122046"]
[WhiteElo "2376"]
[BlackElo "2169"]
[Result "1-0"]
[Round "09"]
[TimeControl "180+1"]
[Date "2022.11.09"]
[WhiteClock "0:00:06"]
[BlackClock "0:00:07"]

1. d4 {[%clk 0:03:00]}  Nf6 {[%clk 0:02:59]} 2. c4 {[%clk 0:03:00]}  e6 {[%clk 0:02:59]} 3. g3 {[%clk 0:03:01]}  d5 {[%clk 0:02:58]} 4. Nf3 {[%clk 0:03:01]}  dxc4 {[%clk 0:02:58]} 5. Bg2 {[%clk 0:03:01]}  Nc6 {[%clk 0:02:58]} 6. Qa4 {[%clk 0:03:01]}  Bb4+ {[%clk 0:02:57]} 7. Bd2 {[%clk 0:03:01]}  Bd6 {[%clk 0:02:57]} 8. O-O {[%clk 0:02:59]}  O-O {[%clk 0:02:56]} 9. Bc3 {[%clk 0:02:57]}  Ne4 {[%clk 0:02:42]} 10. Nbd2 {[%clk 0:02:48]}  Nxc3 {[%clk 0:02:42]} 11. bxc3 {[%clk 0:02:49]}  a6 {[%clk 0:02:07]} 12. Qxc4 {[%clk 0:02:48]}  e5 {[%clk 0:02:01]} 13. e3 {[%clk 0:02:34]}  Qe8 {[%clk 0:01:30]} 14. Ng5 {[%clk 0:01:38]}  h6 {[%clk 0:01:10]} 15. Nge4 {[%clk 0:01:38]}  Na5 {[%clk 0:00:55]} 16. Qd3 {[%clk 0:01:04]}  f5 {[%clk 0:00:41]} 17. Nxd6 {[%clk 0:01:03]}  cxd6 {[%clk 0:00:41]} 18. c4 {[%clk 0:00:20]}  e4 {[%clk 0:00:39]} 19. Qa3 {[%clk 0:00:19]}  Qd8 {[%clk 0:00:34]} 20. Rac1 {[%clk 0:00:18]}  Be6 {[%clk 0:00:30]} 21. c5 {[%clk 0:00:13]}  d5 {[%clk 0:00:29]} 22. Rb1 {[%clk 0:00:13]}  Qc7 {[%clk 0:00:20]} 23. Rb6 {[%clk 0:00:10]}  Nc6 {[%clk 0:00:18]} 24. Rfb1 {[%clk 0:00:07]}  Ra7 {[%clk 0:00:18]} 25. f3 {[%clk 0:00:07]}  Bc8 {[%clk 0:00:15]} 26. f4 {[%clk 0:00:07]}  Be6 {[%clk 0:00:15]} 27. Qb2 {[%clk 0:00:05]}  Bc8 {[%clk 0:00:14]} 28. Nb3 {[%clk 0:00:05]}  Rd8 {[%clk 0:00:14]} 29. Qa3 {[%clk 0:00:06]}  Kh8 {[%clk 0:00:13]} 30. Na5 {[%clk 0:00:06]}  Nxa5 {[%clk 0:00:13]} 31. Qxa5 {[%clk 0:00:06]}  Bd7 {[%clk 0:00:10]} 32. Rxh6+ {[%clk 0:00:05]}  gxh6 {[%clk 0:00:08]} 33. Qxc7 {[%clk 0:00:06]}  Raa8 {[%clk 0:00:09]} 34. Rxb7 {[%clk 0:00:05]}  Rac8 {[%clk 0:00:08]} 35. Qb6 {[%clk 0:00:06]}  Bc6 {[%clk 0:00:08]} 36. Rc7 {[%clk 0:00:05]}  Rxc7 {[%clk 0:00:07]} 37. Qxc7 {[%clk 0:00:06]} 1-0


[Site "https://www.chess.com"]

[Event "Titled Tuesday Blitz November 08 Early 2022"]
[White "Ozen, Bahadir"]
[Black "Lewtak, Damian"]
[WhiteFideId "6337058"]
[BlackFideId "1141724"]
[WhiteElo "2503"]
[BlackElo "2329"]
[Result "1-0"]
[Round "09"]
[TimeControl "180+1"]
[Date "2022.11.08"]
[WhiteClock "0:00:06"]
[BlackClock "0:00:02"]

1. g3 {[%clk 0:03:00]}  d6 {[%clk 0:02:57]} 2. Bg2 {[%clk 0:03:00]}  g6 {[%clk 0:02:56]} 3. Nf3 {[%clk 0:02:56]}  Bg7 {[%clk 0:02:56]} 4. O-O {[%clk 0:02:57]}  Nf6 {[%clk 0:02:56]} 5. d3 {[%clk 0:02:56]}  O-O {[%clk 0:02:56]} 6. e4 {[%clk 0:02:56]}  a5 {[%clk 0:02:56]} 7. a4 {[%clk 0:02:54]}  e5 {[%clk 0:02:46]} 8. Nh4 {[%clk 0:02:45]}  d5 {[%clk 0:02:42]} 9. Nd2 {[%clk 0:02:37]}  Nc6 {[%clk 0:02:40]} 10. Re1 {[%clk 0:02:21]}  dxe4 {[%clk 0:02:40]} 11. dxe4 {[%clk 0:02:20]}  g5 {[%clk 0:02:40]} 12. Nf5 {[%clk 0:02:19]}  Bxf5 {[%clk 0:02:40]} 13. exf5 {[%clk 0:02:19]}  Qd7 {[%clk 0:02:32]} 14. Ne4 {[%clk 0:02:14]}  Qxf5 {[%clk 0:02:17]} 15. Nxf6+ {[%clk 0:02:02]}  Qxf6 {[%clk 0:02:16]} 16. c3 {[%clk 0:02:03]}  Rab8 {[%clk 0:01:58]} 17. Be4 {[%clk 0:01:59]}  Rfd8 {[%clk 0:01:52]} 18. Qg4 {[%clk 0:01:58]}  h6 {[%clk 0:01:51]} 19. Be3 {[%clk 0:01:55]}  Ne7 {[%clk 0:01:48]} 20. Ba7 {[%clk 0:01:43]}  Ra8 {[%clk 0:01:45]} 21. Bc5 {[%clk 0:01:43]}  Rab8 {[%clk 0:01:46]} 22. Ba7 {[%clk 0:01:30]}  Ra8 {[%clk 0:01:46]} 23. Be3 {[%clk 0:01:31]}  Rab8 {[%clk 0:01:41]} 24. Rad1 {[%clk 0:01:31]}  b6 {[%clk 0:01:34]} 25. Kg2 {[%clk 0:01:30]}  Qe6 {[%clk 0:01:26]} 26. Qxe6 {[%clk 0:01:21]}  fxe6 {[%clk 0:01:27]} 27. h3 {[%clk 0:01:00]}  Kf7 {[%clk 0:01:26]} 28. Kf3 {[%clk 0:01:00]}  Nf5 {[%clk 0:01:22]} 29. Ke2 {[%clk 0:00:52]}  Bf8 {[%clk 0:01:13]} 30. Bc1 {[%clk 0:00:47]}  Bc5 {[%clk 0:01:09]} 31. Rf1 {[%clk 0:00:45]}  Ke7 {[%clk 0:01:06]} 32. Rxd8 {[%clk 0:00:43]}  Rxd8 {[%clk 0:01:05]} 33. Bc2 {[%clk 0:00:44]}  Kf6 {[%clk 0:00:58]} 34. Be4 {[%clk 0:00:43]}  Be7 {[%clk 0:00:50]} 35. Be3 {[%clk 0:00:41]}  Bc5 {[%clk 0:00:51]} 36. Bc1 {[%clk 0:00:40]}  h5 {[%clk 0:00:51]} 37. g4 {[%clk 0:00:36]}  hxg4 {[%clk 0:00:50]} 38. hxg4 {[%clk 0:00:37]}  Nh4 {[%clk 0:00:50]} 39. Be3 {[%clk 0:00:28]}  Ng6 {[%clk 0:00:38]} 40. Rh1 {[%clk 0:00:18]}  Bxe3 {[%clk 0:00:33]} 41. fxe3 {[%clk 0:00:18]}  Rh8 {[%clk 0:00:31]} 42. Rxh8 {[%clk 0:00:09]}  Nxh8 {[%clk 0:00:30]} 43. b4 {[%clk 0:00:10]}  Nf7 {[%clk 0:00:29]} 44. bxa5 {[%clk 0:00:10]}  bxa5 {[%clk 0:00:29]} 45. Kd3 {[%clk 0:00:11]}  Nd6 {[%clk 0:00:30]} 46. Bc6 {[%clk 0:00:07]}  Ke7 {[%clk 0:00:27]} 47. Bf3 {[%clk 0:00:05]}  Kd7 {[%clk 0:00:22]} 48. Bg2 {[%clk 0:00:05]}  Ne8 {[%clk 0:00:21]} 49. Kc4 {[%clk 0:00:03]}  Nf6 {[%clk 0:00:20]} 50. Bf3 {[%clk 0:00:03]}  e4 {[%clk 0:00:20]} 51. Be2 {[%clk 0:00:04]}  Nd5 {[%clk 0:00:20]} 52. Kd4 {[%clk 0:00:04]}  Kd6 {[%clk 0:00:19]} 53. c4 {[%clk 0:00:04]}  c5+ {[%clk 0:00:19]} 54. Kxe4 {[%clk 0:00:04]}  Nc3+ {[%clk 0:00:19]} 55. Kd3 {[%clk 0:00:04]}  Nxa4 {[%clk 0:00:20]} 56. Bd1 {[%clk 0:00:02]}  Nb6 {[%clk 0:00:20]} 57. Kc3 {[%clk 0:00:03]}  Ke5 {[%clk 0:00:20]} 58. Bc2 {[%clk 0:00:04]}  Kd6 {[%clk 0:00:17]} 59. Kd3 {[%clk 0:00:04]}  Nd7 {[%clk 0:00:17]} 60. Bd1 {[%clk 0:00:02]}  Ne5+ {[%clk 0:00:17]} 61. Kc3 {[%clk 0:00:03]}  Nf7 {[%clk 0:00:17]} 62. Bc2 {[%clk 0:00:03]}  Nd8 {[%clk 0:00:17]} 63. Bd1 {[%clk 0:00:04]}  Nc6 {[%clk 0:00:16]} 64. Bf3 {[%clk 0:00:04]}  Nb8 {[%clk 0:00:16]} 65. Kb3 {[%clk 0:00:04]}  Kc7 {[%clk 0:00:15]} 66. Ka4 {[%clk 0:00:04]}  Kb6 {[%clk 0:00:16]} 67. Bd1 {[%clk 0:00:03]}  Nc6 {[%clk 0:00:16]} 68. Kb3 {[%clk 0:00:04]}  Nb4 {[%clk 0:00:16]} 69. Be2 {[%clk 0:00:05]}  Na6 {[%clk 0:00:15]} 70. Ka4 {[%clk 0:00:05]}  Nc7 {[%clk 0:00:16]} 71. Bd1 {[%clk 0:00:05]}  Ne8 {[%clk 0:00:16]} 72. Kb3 {[%clk 0:00:05]}  Nd6 {[%clk 0:00:16]} 73. Be2 {[%clk 0:00:06]}  Nc8 {[%clk 0:00:16]} 74. Bd1 {[%clk 0:00:06]}  Kc6 {[%clk 0:00:15]} 75. Ka4 {[%clk 0:00:07]}  Kb6 {[%clk 0:00:15]} 76. Kb3 {[%clk 0:00:07]}  Nd6 {[%clk 0:00:16]} 77. Be2 {[%clk 0:00:06]}  Ne4 {[%clk 0:00:16]} 78. Bd3 {[%clk 0:00:05]}  Nf2 {[%clk 0:00:16]} 79. Be2 {[%clk 0:00:05]}  Kc6 {[%clk 0:00:15]} 80. Ka4 {[%clk 0:00:05]}  Kb6 {[%clk 0:00:15]} 81. Kb3 {[%clk 0:00:06]}  Nh1 {[%clk 0:00:14]} 82. Ka4 {[%clk 0:00:04]}  Ng3 {[%clk 0:00:15]} 83. Bd3 {[%clk 0:00:05]}  e5 {[%clk 0:00:14]} 84. Kb3 {[%clk 0:00:05]}  e4 {[%clk 0:00:13]} 85. Bc2 {[%clk 0:00:06]}  Kc6 {[%clk 0:00:14]} 86. Kc3 {[%clk 0:00:06]}  Kd6 {[%clk 0:00:13]} 87. Kd2 {[%clk 0:00:05]}  Ke5 {[%clk 0:00:10]} 88. Ke1 {[%clk 0:00:05]}  Nf5 {[%clk 0:00:01]} 89. gxf5 {[%clk 0:00:06]}  Kxf5 {[%clk 0:00:02]} 90. Kf2 {[%clk 0:00:07]}  Ke5 {[%clk 0:00:02]} 91. Kg3 {[%clk 0:00:07]}  Kf5 {[%clk 0:00:03]} 92. Ba4 {[%clk 0:00:06]}  g4 {[%clk 0:00:02]} 93. Kh4 {[%clk 0:00:06]} 1-0


[Site "https://www.chess.com"]

[Event "Titled Tuesday Blitz November 08 Early 2022"]
[White "Pakleza, Zbigniew"]
[Black "Maghsoodloo, Parham"]
[WhiteFideId "1119290"]
[BlackFideId "12539929"]
[WhiteElo "2411"]
[BlackElo "2676"]
[Result "0-1"]
[Round "09"]
[TimeControl "180+1"]
[Date "2022.11.08"]
[WhiteClock "0:00:03"]
[BlackClock "0:01:24"]

1. d4 {[%clk 0:03:00]}  d5 {[%clk 0:02:53]} 2. Bf4 {[%clk 0:03:00]}  c5 {[%clk 0:02:52]} 3. c3 {[%clk 0:03:01]}  Nc6 {[%clk 0:02:53]} 4. e3 {[%clk 0:03:01]}  Nf6 {[%clk 0:02:51]} 5. Nd2 {[%clk 0:03:01]}  Qb6 {[%clk 0:02:51]} 6. Qb3 {[%clk 0:03:00]}  c4 {[%clk 0:02:51]} 7. Qc2 {[%clk 0:03:01]}  g6 {[%clk 0:02:51]} 8. e4 {[%clk 0:02:59]}  dxe4 {[%clk 0:02:43]} 9. Bxc4 {[%clk 0:02:51]}  Bf5 {[%clk 0:02:42]} 10. Qb3 {[%clk 0:02:51]}  e6 {[%clk 0:02:37]} 11. Qxb6 {[%clk 0:02:42]}  axb6 {[%clk 0:02:37]} 12. h3 {[%clk 0:02:37]}  h5 {[%clk 0:02:35]} 13. Ne2 {[%clk 0:02:37]}  Nd5 {[%clk 0:02:29]} 14. Be3 {[%clk 0:02:17]}  h4 {[%clk 0:02:28]} 15. g4 {[%clk 0:02:00]}  hxg3 {[%clk 0:02:27]} 16. Nxg3 {[%clk 0:02:01]}  Nxe3 {[%clk 0:02:14]} 17. fxe3 {[%clk 0:02:00]}  Rh4 {[%clk 0:02:15]} 18. d5 {[%clk 0:01:25]}  Ne5 {[%clk 0:02:14]} 19. dxe6 {[%clk 0:01:21]}  fxe6 {[%clk 0:02:13]} 20. Be2 {[%clk 0:01:11]}  Bh6 {[%clk 0:02:01]} 21. Kf2 {[%clk 0:00:29]}  Ke7 {[%clk 0:02:01]} 22. Bg4 {[%clk 0:00:26]}  Rf8 {[%clk 0:01:53]} 23. Kg2 {[%clk 0:00:17]}  Bxe3 {[%clk 0:01:53]} 24. Ndxe4 {[%clk 0:00:16]}  Nxg4 {[%clk 0:01:53]} 25. hxg4 {[%clk 0:00:16]}  Bxe4+ {[%clk 0:01:50]} 26. Nxe4 {[%clk 0:00:14]}  Rxg4+ {[%clk 0:01:50]} 27. Ng3 {[%clk 0:00:14]}  Bf4 {[%clk 0:01:47]} 28. Rh3 {[%clk 0:00:11]}  Rf5 {[%clk 0:01:48]} 29. Rf1 {[%clk 0:00:09]}  Rfg5 {[%clk 0:01:48]} 30. Rf3 {[%clk 0:00:08]}  Rh5 {[%clk 0:01:33]} 31. a4 {[%clk 0:00:04]}  e5 {[%clk 0:01:30]} 32. b4 {[%clk 0:00:02]}  Ke6 {[%clk 0:01:28]} 33. Kh2 {[%clk 0:00:03]}  e4 {[%clk 0:01:24]} 0-1


[Site "https://www.chess.com"]

[Event "Titled Tuesday Blitz November 08 Early 2022"]
[White "Perez Gormaz, Matias"]
[Black "Rakhmanov, Aleksandr"]
[WhiteFideId "3406342"]
[BlackFideId "4173708"]
[WhiteElo "2341"]
[BlackElo "2530"]
[Result "0-1"]
[Round "09"]
[TimeControl "180+1"]
[Date "2022.11.08"]
[WhiteClock "0:00:01"]
[BlackClock "0:00:06"]

1. e4 {[%clk 0:02:54]}  c5 {[%clk 0:02:59]} 2. Nf3 {[%clk 0:02:53]}  Nf6 {[%clk 0:02:58]} 3. e5 {[%clk 0:02:43]}  Nd5 {[%clk 0:02:55]} 4. c3 {[%clk 0:02:36]}  d6 {[%clk 0:02:54]} 5. exd6 {[%clk 0:02:29]}  e6 {[%clk 0:02:51]} 6. g3 {[%clk 0:02:26]}  Bxd6 {[%clk 0:02:51]} 7. Bg2 {[%clk 0:02:27]}  O-O {[%clk 0:02:49]} 8. O-O {[%clk 0:02:28]}  Nc6 {[%clk 0:02:49]} 9. d4 {[%clk 0:02:28]}  cxd4 {[%clk 0:02:49]} 10. Nxd4 {[%clk 0:02:29]}  Bd7 {[%clk 0:02:47]} 11. c4 {[%clk 0:02:15]}  Nde7 {[%clk 0:02:36]} 12. Nb5 {[%clk 0:02:07]}  Bc5 {[%clk 0:02:12]} 13. N1c3 {[%clk 0:02:05]}  Nf5 {[%clk 0:01:57]} 14. Ne4 {[%clk 0:02:01]}  Be7 {[%clk 0:01:48]} 15. Bf4 {[%clk 0:01:56]}  e5 {[%clk 0:01:41]} 16. Bd2 {[%clk 0:01:51]}  Be6 {[%clk 0:01:33]} 17. b3 {[%clk 0:01:47]}  Nfd4 {[%clk 0:01:21]} 18. Nec3 {[%clk 0:01:40]}  a6 {[%clk 0:01:10]} 19. Nxd4 {[%clk 0:01:39]}  exd4 {[%clk 0:00:56]} 20. Nd5 {[%clk 0:01:38]}  Re8 {[%clk 0:00:50]} 21. Re1 {[%clk 0:01:38]}  Bf8 {[%clk 0:00:46]} 22. Bf4 {[%clk 0:01:37]}  Rc8 {[%clk 0:00:46]} 23. a3 {[%clk 0:01:34]}  b5 {[%clk 0:00:43]} 24. h4 {[%clk 0:00:46]}  bxc4 {[%clk 0:00:41]} 25. bxc4 {[%clk 0:00:47]}  Na5 {[%clk 0:00:35]} 26. Bg5 {[%clk 0:00:32]}  f6 {[%clk 0:00:34]} 27. Bd2 {[%clk 0:00:13]}  Nxc4 {[%clk 0:00:33]} 28. Nf4 {[%clk 0:00:14]}  Bf7 {[%clk 0:00:33]} 29. Bb4 {[%clk 0:00:13]}  Rxe1+ {[%clk 0:00:31]} 30. Qxe1 {[%clk 0:00:13]}  Bxb4 {[%clk 0:00:29]} 31. axb4 {[%clk 0:00:12]}  Qd6 {[%clk 0:00:28]} 32. Rd1 {[%clk 0:00:12]}  Ne5 {[%clk 0:00:25]} 33. Qe4 {[%clk 0:00:10]}  Rd8 {[%clk 0:00:25]} 34. Qb7 {[%clk 0:00:10]}  d3 {[%clk 0:00:21]} 35. Be4 {[%clk 0:00:10]}  d2 {[%clk 0:00:20]} 36. Qa7 {[%clk 0:00:09]}  Qxb4 {[%clk 0:00:17]} 37. Qxa6 {[%clk 0:00:08]}  Qxe4 {[%clk 0:00:16]} 38. Qa5 {[%clk 0:00:02]}  Qa8 {[%clk 0:00:11]} 39. Qc3 {[%clk 0:00:01]}  Nf3+ {[%clk 0:00:10]} 40. Kh1 {[%clk 0:00:01]}  h6 {[%clk 0:00:07]} 41. Ng2 {[%clk 0:00:01]}  Ne1 {[%clk 0:00:07]} 42. f3 {[%clk 0:00:01]}  Nxf3 {[%clk 0:00:06]} 0-1


[Site "https://www.chess.com"]

[Event "Titled Tuesday Blitz November 08 Early 2022"]
[White "Piesik, Piotr"]
[Black "Ristic, Nebojsa B"]
[WhiteFideId "1136194"]
[BlackFideId "935468"]
[WhiteElo "2731"]
[BlackElo "2551"]
[Result "1-0"]
[Round "09"]
[TimeControl "180+1"]
[Date "2022.11.09"]
[WhiteClock "0:00:19"]
[BlackClock "0:00:02"]

1. Nf3 {[%clk 0:03:00]}  Nf6 {[%clk 0:02:59]} 2. g3 {[%clk 0:03:01]}  b6 {[%clk 0:02:58]} 3. Bg2 {[%clk 0:03:01]}  Bb7 {[%clk 0:02:58]} 4. O-O {[%clk 0:03:02]}  g6 {[%clk 0:02:59]} 5. c4 {[%clk 0:03:02]}  Bg7 {[%clk 0:02:59]} 6. Nc3 {[%clk 0:03:03]}  O-O {[%clk 0:02:52]} 7. d3 {[%clk 0:03:03]}  e6 {[%clk 0:02:50]} 8. e4 {[%clk 0:03:03]}  d6 {[%clk 0:02:43]} 9. Ne1 {[%clk 0:03:03]}  e5 {[%clk 0:02:33]} 10. f4 {[%clk 0:03:02]}  Nc6 {[%clk 0:02:31]} 11. Nc2 {[%clk 0:02:59]}  a5 {[%clk 0:02:20]} 12. f5 {[%clk 0:02:58]}  Nd4 {[%clk 0:02:15]} 13. Ne3 {[%clk 0:02:55]}  Nd7 {[%clk 0:02:11]} 14. Bh3 {[%clk 0:02:47]}  Nc5 {[%clk 0:02:06]} 15. Ncd5 {[%clk 0:02:43]}  f6 {[%clk 0:02:02]} 16. fxg6 {[%clk 0:02:41]}  hxg6 {[%clk 0:02:03]} 17. Nc2 {[%clk 0:02:24]}  Nxc2 {[%clk 0:01:51]} 18. Qxc2 {[%clk 0:02:24]}  c6 {[%clk 0:01:51]} 19. Ne3 {[%clk 0:02:21]}  Bc8 {[%clk 0:01:51]} 20. Bxc8 {[%clk 0:02:17]}  Qxc8 {[%clk 0:01:52]} 21. Bd2 {[%clk 0:02:15]}  Qh3 {[%clk 0:01:49]} 22. Rf3 {[%clk 0:02:11]}  Ne6 {[%clk 0:01:48]} 23. Qd1 {[%clk 0:02:00]}  Nd4 {[%clk 0:01:45]} 24. Rf2 {[%clk 0:02:00]}  Bh6 {[%clk 0:01:42]} 25. Ng2 {[%clk 0:01:51]}  f5 {[%clk 0:01:20]} 26. exf5 {[%clk 0:01:47]}  Rxf5 {[%clk 0:01:17]} 27. Bxh6 {[%clk 0:01:45]}  Rxf2 {[%clk 0:01:13]} 28. Kxf2 {[%clk 0:01:44]}  Qxh6 {[%clk 0:01:10]} 29. h4 {[%clk 0:01:36]}  Rf8+ {[%clk 0:01:05]} 30. Kg1 {[%clk 0:01:36]}  Rf3 {[%clk 0:00:53]} 31. Kh2 {[%clk 0:01:28]}  Qh5 {[%clk 0:00:45]} 32. Qd2 {[%clk 0:01:15]}  Qg4 {[%clk 0:00:28]} 33. Qg5 {[%clk 0:00:56]}  Qxg5 {[%clk 0:00:26]} 34. hxg5 {[%clk 0:00:57]}  Rxd3 {[%clk 0:00:27]} 35. Nh4 {[%clk 0:00:53]}  Kg7 {[%clk 0:00:26]} 36. Rf1 {[%clk 0:00:52]}  Rd2+ {[%clk 0:00:26]} 37. Kh3 {[%clk 0:00:52]}  e4 {[%clk 0:00:21]} 38. Rf6 {[%clk 0:00:52]}  Nf5 {[%clk 0:00:12]} 39. Rxg6+ {[%clk 0:00:47]}  Kh7 {[%clk 0:00:10]} 40. Re6 {[%clk 0:00:47]}  Nxh4 {[%clk 0:00:07]} 41. gxh4 {[%clk 0:00:47]}  d5 {[%clk 0:00:07]} 42. cxd5 {[%clk 0:00:47]}  cxd5 {[%clk 0:00:08]} 43. h5 {[%clk 0:00:46]}  Rxb2 {[%clk 0:00:07]} 44. Re7+ {[%clk 0:00:47]}  Kg8 {[%clk 0:00:07]} 45. h6 {[%clk 0:00:45]}  Rb1 {[%clk 0:00:05]} 46. Kg4 {[%clk 0:00:43]}  Rg1+ {[%clk 0:00:05]} 47. Kf5 {[%clk 0:00:40]}  Kf8 {[%clk 0:00:05]} 48. Rb7 {[%clk 0:00:33]}  e3 {[%clk 0:00:05]} 49. h7 {[%clk 0:00:31]}  Rh1 {[%clk 0:00:03]} 50. Kf6 {[%clk 0:00:30]}  Rf1+ {[%clk 0:00:03]} 51. Kg6 {[%clk 0:00:30]}  Rh1 {[%clk 0:00:04]} 52. Kf6 {[%clk 0:00:18]}  Rf1+ {[%clk 0:00:02]} 53. Ke6 {[%clk 0:00:18]}  Rh1 {[%clk 0:00:03]} 54. g6 {[%clk 0:00:19]}  e2 {[%clk 0:00:02]} 55. g7+ {[%clk 0:00:19]}  Ke8 {[%clk 0:00:02]} 56. Rb8# {[%clk 0:00:19]} 1-0


[Site "https://www.chess.com"]

[Event "Titled Tuesday Blitz November 08 Early 2022"]
[White "Pranav, V"]
[Black "Galperin, Platon"]
[WhiteFideId "25060783"]
[BlackFideId "14165414"]
[WhiteElo "2430"]
[BlackElo "2435"]
[Result "1-0"]
[Round "09"]
[TimeControl "180+1"]
[Date "2022.11.08"]
[WhiteClock "0:02:22"]
[BlackClock "0:01:18"]

1. e4 {[%clk 0:03:00]}  e5 {[%clk 0:02:56]} 2. Nf3 {[%clk 0:03:00]}  Nc6 {[%clk 0:02:55]} 3. Bc4 {[%clk 0:03:01]}  Nf6 {[%clk 0:02:55]} 4. Ng5 {[%clk 0:03:01]}  d5 {[%clk 0:02:54]} 5. exd5 {[%clk 0:03:02]}  b5 {[%clk 0:02:47]} 6. Bf1 {[%clk 0:02:58]}  Nxd5 {[%clk 0:02:43]} 7. Bxb5 {[%clk 0:02:53]}  Bb7 {[%clk 0:02:43]} 8. d4 {[%clk 0:02:49]}  Be7 {[%clk 0:02:40]} 9. Nf3 {[%clk 0:02:49]}  a6 {[%clk 0:01:40]} 10. Bxc6+ {[%clk 0:02:34]}  Bxc6 {[%clk 0:01:41]} 11. Nxe5 {[%clk 0:02:34]}  Bb7 {[%clk 0:01:41]} 12. O-O {[%clk 0:02:34]}  O-O {[%clk 0:01:39]} 13. c4 {[%clk 0:02:34]}  Nf6 {[%clk 0:01:37]} 14. Nc3 {[%clk 0:02:30]}  Re8 {[%clk 0:01:34]} 15. Re1 {[%clk 0:02:29]}  h6 {[%clk 0:01:33]} 16. Bf4 {[%clk 0:02:25]}  Bd6 {[%clk 0:01:32]} 17. Bg3 {[%clk 0:02:25]}  Qc8 {[%clk 0:01:33]} 18. c5 {[%clk 0:02:23]}  Bf8 {[%clk 0:01:32]} 19. c6 {[%clk 0:02:24]}  Bxc6 {[%clk 0:01:26]} 20. Nxc6 {[%clk 0:02:24]}  Rxe1+ {[%clk 0:01:26]} 21. Qxe1 {[%clk 0:02:25]}  Qd7 {[%clk 0:01:27]} 22. d5 {[%clk 0:02:24]}  Nxd5 {[%clk 0:01:28]} 23. Nxd5 {[%clk 0:02:24]}  Qxd5 {[%clk 0:01:28]} 24. Ne7+ {[%clk 0:02:25]}  Bxe7 {[%clk 0:01:29]} 25. Qxe7 {[%clk 0:02:25]}  c5 {[%clk 0:01:29]} 26. h3 {[%clk 0:02:25]}  Rd8 {[%clk 0:01:30]} 27. b3 {[%clk 0:02:25]}  Qd4 {[%clk 0:01:30]} 28. Rc1 {[%clk 0:02:24]}  c4 {[%clk 0:01:29]} 29. Rxc4 {[%clk 0:02:21]}  Qa1+ {[%clk 0:01:29]} 30. Kh2 {[%clk 0:02:22]}  Rd1 {[%clk 0:01:28]} 31. Rc8+ {[%clk 0:02:22]}  Kh7 {[%clk 0:01:27]} 32. Qe4+ {[%clk 0:02:23]}  g6 {[%clk 0:01:26]} 33. Be5 {[%clk 0:02:23]}  Qxe5+ {[%clk 0:01:22]} 34. Qxe5 {[%clk 0:02:24]}  Rd2 {[%clk 0:01:18]} 35. Rh8# {[%clk 0:02:22]} 1-0


[Site "https://www.chess.com"]